Department family,Entity,Date,Expense type,Expense area,Supplier,Transaction number,Amount
Department of Health,University Hospitals of Morecambe Bay NHS Foundation Trust,06-Sep-17,Drugs,Pharmacy,AAH Pharmaceuticals Ltd,100028769,263881.49
Department of Health,University Hospitals of Morecambe Bay NHS Foundation Trust,06-Sep-17,Rates,Estates & Facilities,Borough Of Barrow-In-Furness,100028535,52962.08
Department of Health,University Hospitals of Morecambe Bay NHS Foundation Trust,06-Sep-17,Managed Service Contract,Corporate,Carveti Partnership Ltd,100028068,69551.98
Department of Health,University Hospitals of Morecambe Bay NHS Foundation Trust,06-Sep-17,Managed Service Contract,Corporate,Carveti Partnership Ltd,100028069,35135.89
Department of Health,University Hospitals of Morecambe Bay NHS Foundation Trust,06-Sep-17,Orthotics Service,Trust Wide,Crispin Orthotics Ltd,100020675,33064.31
Department of Health,University Hospitals of Morecambe Bay NHS Foundation Trust,06-Sep-17,Building Contractors,Capital Services,F Parkinson Ltd,100028771,138506.44
Department of Health,University Hospitals of Morecambe Bay NHS Foundation Trust,06-Sep-17,Drugs,Pharmacy,Healthcare At Home Limited,100028278,27120
Department of Health,University Hospitals of Morecambe Bay NHS Foundation Trust,06-Sep-17,Rates,Estates & Facilities,Lancaster City Council,100028504,47900
Department of Health,University Hospitals of Morecambe Bay NHS Foundation Trust,06-Sep-17,Maintenance Contract,Radiology,Mount International Ultrasound,100028216,24250
Department of Health,University Hospitals of Morecambe Bay NHS Foundation Trust,06-Sep-17,Blood & Blood components contract,Core Clinical,NHS Blood & Transplant,100027858,47850.17
Department of Health,University Hospitals of Morecambe Bay NHS Foundation Trust,06-Sep-17,Blood & Blood components contract,Core Clinical,NHS Blood & Transplant,100027855,37270.25
Department of Health,University Hospitals of Morecambe Bay NHS Foundation Trust,06-Sep-17,Payroll Services,Trust Wide,NHS Shared Business Service Ltd,100028417,24237.77
Department of Health,University Hospitals of Morecambe Bay NHS Foundation Trust,06-Sep-17,NHS Product Sales,Trust Wide,NHS Supply Chain,100028775,141168.13
Department of Health,University Hospitals of Morecambe Bay NHS Foundation Trust,06-Sep-17,Drugs,Pharmacy,Roche Products Ltd,100028456,39451.63
Department of Health,University Hospitals of Morecambe Bay NHS Foundation Trust,06-Sep-17,Internal Audit,Corporate,Royal Liverpool And Broadgreen University Hospitals NHS Trust,100028175,35856
Department of Health,University Hospitals of Morecambe Bay NHS Foundation Trust,06-Sep-17,Rates,Estates & Facilities,South Lakeland District Council,100028533,29780
Department of Health,University Hospitals of Morecambe Bay NHS Foundation Trust,06-Sep-17,Recharge Specialist Registrars,Trust Wide,The Pennine Acute Hospitals NHS Trust,100027900,332000
Department of Health,University Hospitals of Morecambe Bay NHS Foundation Trust,06-Sep-17,Recharge Specialist Registrars,Trust Wide,The Pennine Acute Hospitals NHS Trust,100027895,64000
Department of Health,University Hospitals of Morecambe Bay NHS Foundation Trust,06-Sep-17,Recharge Specialist Registrars,Trust Wide,The Pennine Acute Hospitals NHS Trust,100027897,88000
Department of Health,University Hospitals of Morecambe Bay NHS Foundation Trust,06-Sep-17,Recharge Specialist Registrars,Trust Wide,The Pennine Acute Hospitals NHS Trust,100027898,40000
Department of Health,University Hospitals of Morecambe Bay NHS Foundation Trust,08-Sep-17,Annual Subscription,Workforce,Clinicians Connected Ltd,100011970,30000
Department of Health,University Hospitals of Morecambe Bay NHS Foundation Trust,08-Sep-17,Orthotics Service,Trust Wide,Crispin Orthotics Ltd,100028893,30292.11
Department of Health,University Hospitals of Morecambe Bay NHS Foundation Trust,08-Sep-17,Drugs,Pharmacy,Genzyme Therapeutics Limited,100028900,42270
Department of Health,University Hospitals of Morecambe Bay NHS Foundation Trust,13-Sep-17,Climate Change Levy (CRC),Estates & Facilities,Department of Energy and Climate Change,100029841,272964
Department of Health,University Hospitals of Morecambe Bay NHS Foundation Trust,13-Sep-17,Rent,Medical Records,Mapeley Steps Ltd,100029698,35810.7
Department of Health,University Hospitals of Morecambe Bay NHS Foundation Trust,13-Sep-17,CNST Premium,Corporate,NHS Litigation Authority,100029594,1123073.5
Department of Health,University Hospitals of Morecambe Bay NHS Foundation Trust,13-Sep-17,NHS Product Sales,Trust Wide,NHS Supply Chain,100030737,120559.78
Department of Health,University Hospitals of Morecambe Bay NHS Foundation Trust,13-Sep-17,"Agency Nurses, Midwives & ODPs",Trust Wide,Retinue Solutions Limited,100027150,47800.35
Department of Health,University Hospitals of Morecambe Bay NHS Foundation Trust,13-Sep-17,"Agency Nurses, Midwives & ODPs",Trust Wide,Retinue Solutions Limited,100027627,79055.5
Department of Health,University Hospitals of Morecambe Bay NHS Foundation Trust,13-Sep-17,"Agency Nurses, Midwives & ODPs",Trust Wide,Retinue Solutions Limited,100029235,75255.58
Department of Health,University Hospitals of Morecambe Bay NHS Foundation Trust,20-Sep-17,Beds Managed Contract,Trust Wide,Arjo Huntleigh Ltd,100031528,44668.1
Department of Health,University Hospitals of Morecambe Bay NHS Foundation Trust,20-Sep-17,Beds Managed Contract,Trust Wide,Arjo Huntleigh Ltd,100031531,44668.1
Department of Health,University Hospitals of Morecambe Bay NHS Foundation Trust,20-Sep-17,Beds Managed Contract,Trust Wide,Arjo Huntleigh Ltd,100031532,44668.1
Department of Health,University Hospitals of Morecambe Bay NHS Foundation Trust,20-Sep-17,Managed Service Contract,Pathology,Beckman Coulter UK Ltd,100026384,-76547.23
Department of Health,University Hospitals of Morecambe Bay NHS Foundation Trust,20-Sep-17,Managed Service Contract,Pathology,Beckman Coulter UK Ltd,100026382,-101284.55
Department of Health,University Hospitals of Morecambe Bay NHS Foundation Trust,20-Sep-17,Managed Service Contract,Pathology,Beckman Coulter UK Ltd,100026383,-26750.47
Department of Health,University Hospitals of Morecambe Bay NHS Foundation Trust,20-Sep-17,Managed Service Contract,Pathology,Beckman Coulter UK Ltd,100026481,205511.92
Department of Health,University Hospitals of Morecambe Bay NHS Foundation Trust,20-Sep-17,Managed Service Contract,Pathology,Beckman Coulter UK Ltd,100026404,178761.45
Department of Health,University Hospitals of Morecambe Bay NHS Foundation Trust,20-Sep-17,Speech & Language Therapy Services,Core Clinical,Cumbria Partnership NHS Foundation Trust,100031451,30800.66
Department of Health,University Hospitals of Morecambe Bay NHS Foundation Trust,20-Sep-17,Drugs,Pharmacy,Janssen-Cilag Ltd,100031720,27445.68
Department of Health,University Hospitals of Morecambe Bay NHS Foundation Trust,20-Sep-17,Drugs,Pharmacy,Lloyds Pharmacy Limited,100029711,491984.63
Department of Health,University Hospitals of Morecambe Bay NHS Foundation Trust,20-Sep-17,NHS Product Sales,Trust Wide,NHS Supply Chain,100030900,136466.45
Department of Health,University Hospitals of Morecambe Bay NHS Foundation Trust,20-Sep-17,Building Contractors,Capital Services,Pinington Construction,100000565,32499.16
Department of Health,University Hospitals of Morecambe Bay NHS Foundation Trust,20-Sep-17,Better Care Together Supplort,Trust Board,Pricewaterhousecoopers,100032927,231000
Department of Health,University Hospitals of Morecambe Bay NHS Foundation Trust,27-Sep-17,Beds Managed Contract,Trust Wide,Arjo Huntleigh Ltd,100036266,44668.1
Department of Health,University Hospitals of Morecambe Bay NHS Foundation Trust,27-Sep-17,Laundry,Estates & Facilities,Berendsen UK Ltd,100031911,23598.44
Department of Health,University Hospitals of Morecambe Bay NHS Foundation Trust,27-Sep-17,Orthotics Service,Trust Wide,Crispin Orthotics Ltd,100031866,29852.96
Department of Health,University Hospitals of Morecambe Bay NHS Foundation Trust,27-Sep-17,Drugs,Pharmacy,Genzyme Therapeutics Limited,100032154,25362
Department of Health,University Hospitals of Morecambe Bay NHS Foundation Trust,27-Sep-17,Drugs,Pharmacy,Genzyme Therapeutics Limited,100032275,25362
Department of Health,University Hospitals of Morecambe Bay NHS Foundation Trust,27-Sep-17,Drugs,Pharmacy,Genzyme Therapeutics Limited,100032228,42270
Department of Health,University Hospitals of Morecambe Bay NHS Foundation Trust,27-Sep-17,Maintenance Contract,Information Technology,Healthcare Software Systems,100035676,25801.46
Department of Health,University Hospitals of Morecambe Bay NHS Foundation Trust,27-Sep-17,Laboratory Testing,Pathology,Lancashire Teaching Hospitals NHS Foundation Trust,100033930,51648.07
Department of Health,University Hospitals of Morecambe Bay NHS Foundation Trust,27-Sep-17,Contract Management ,Trust Wide,Leaseguard Group Ltd,100029097,32866.68
Department of Health,University Hospitals of Morecambe Bay NHS Foundation Trust,27-Sep-17,Payroll Services,Trust Wide,NHS Shared Business Service Ltd,100036306,24237.77
Department of Health,University Hospitals of Morecambe Bay NHS Foundation Trust,27-Sep-17,NHS Product Sales,Trust Wide,NHS Supply Chain,100033514,132489.39
Department of Health,University Hospitals of Morecambe Bay NHS Foundation Trust,27-Sep-17,Drugs,Pharmacy,Roche Products Ltd,100032279,29695.56
Department of Health,University Hospitals of Morecambe Bay NHS Foundation Trust,27-Sep-17,Drugs,Pharmacy,Roche Products Ltd,100034620,28385.6
Department of Health,University Hospitals of Morecambe Bay NHS Foundation Trust,27-Sep-17,Drugs,Pharmacy,Roche Products Ltd,100034879,28252.01
Department of Health,University Hospitals of Morecambe Bay NHS Foundation Trust,27-Sep-17,IT System - Monthly charge,Information Technology,Sectra Limited,100033705,31295.35
Department of Health,University Hospitals of Morecambe Bay NHS Foundation Trust,27-Sep-17,IT System - Monthly charge,Information Technology,Sectra Limited,100032901,31295.35
